fUST/lending_fUST_20250531
["ID","MTS","AMOUNT","RATE_DAILY","PERIOD"]
[363348089,1748687253592,-91.72507819,0.00016986,2]
[363348092,1748687320042,151.000001,0.0002,120]
[363348097,1748687324379,9667.44015127,0.0002191,120]
[363348098,1748687363097,-300.0,0.00016137,2]
[363348099,1748687363120,-7348.85620405,0.00016138,2]
[363348100,1748687372128,-7551.38139999,0.00016138,2]
[363348109,1748687373108,-9999.76239596,0.00016138,2]
[363348110,1748687373131,-951.16920404,0.00016274,2]
[363348144,1748687432575,-165.59358176,0.00015945,2]
[363348146,1748687432585,-317.36978521,0.00016274,2]
[363348148,1748687432595,-300.0,0.00016437,2]
[363348150,1748687432604,-251.93663303,0.00016438,2]
[363348166,1748687432733,-184.81336697,0.00016438,2]
[363348168,1748687432744,-768.22,0.00016438,2]
[363348169,1748687432754,-576.12,0.00016438,2]
[363348170,1748687432764,-430.0,0.00016438,2]
[363348171,1748687432774,-430.0,0.00016438,2]
[363348172,1748687432783,-430.0,0.00016438,2]
[363348173,1748687432792,-430.0,0.00016438,2]
[363348174,1748687432802,-430.0,0.00016438,2]
[363348175,1748687432812,-430.0,0.00016438,2]
[363348177,1748687432822,-430.0,0.00016438,2]
[363348179,1748687432831,-430.0,0.00016438,2]
[363348181,1748687432841,-430.0,0.00016438,2]
[363348182,1748687432850,-430.0,0.00016438,2]
[363348183,1748687432859,-430.0,0.00016438,2]
[363348184,1748687432870,-430.0,0.00016438,2]
[363348185,1748687432879,-430.0,0.00016438,2]
[363348186,1748687432890,-430.0,0.00016438,2]
[363348187,1748687432899,-430.0,0.00016438,2]
[363348188,1748687432909,-436.75,0.00016712,2]
[363348189,1748687432919,-768.22,0.00016712,2]
[363348190,1748687432929,-576.12,0.00016712,2]
[363348191,1748687432939,-430.0,0.00016712,2]
[363348192,1748687432948,-430.0,0.00016712,2]
[363348193,1748687432958,-430.0,0.00016712,2]
[363348194,1748687432967,-430.0,0.00016712,2]
[363348195,1748687432978,-163.45,0.00016712,2]
[363348196,1748687432987,-430.0,0.00016712,2]
[363348197,1748687432998,-109.34833795,0.00016712,2]
[363348215,1748687438591,-320.65166205,0.00016712,2]
[363348217,1748687438602,-430.0,0.00016985,2]
[363348219,1748687438612,-430.0,0.00016986,2]
[363348221,1748687438621,-430.0,0.00016986,2]
[363348223,1748687438629,-430.0,0.00016986,2]
[363348225,1748687438639,-2879.6,0.00016986,2]
[363348227,1748687438650,-490.67,0.00016986,2]
[363348229,1748687438659,-764.65,0.00016986,2]
[363348231,1748687438668,-430.0,0.00016986,2]
[363348233,1748687438677,-680.93,0.00016986,2]
[363348235,1748687438686,-436.75,0.00016986,2]
[363348237,1748687438695,-768.22,0.00016986,2]
[363348239,1748687438704,-576.12,0.00016986,2]
[363348241,1748687438713,-430.0,0.00016986,2]
[363348243,1748687438723,-430.0,0.00016986,2]
[363348245,1748687438733,-430.0,0.00016986,2]
[363348246,1748687438742,-430.0,0.00016986,2]
[363348248,1748687438753,-430.0,0.00016986,2]
[363348250,1748687438762,-430.0,0.00016986,2]
[363348252,1748687438771,-157.04898683,0.0001716,2]
[363348253,1748687438781,-298.0856793,0.00017207,2]
[363348254,1748687438791,-430.0,0.00017259,2]
[363348255,1748687438800,-400.0,0.00017259,2]
[363348256,1748687438809,-430.0,0.0001726,2]
[363348257,1748687438820,-430.0,0.0001726,2]
[363348258,1748687438829,-430.0,0.0001726,2]
[363348259,1748687438838,-2879.6,0.0001726,2]
[363348260,1748687438847,-490.67,0.0001726,2]
[363348261,1748687438857,-764.65,0.0001726,2]
[363348262,1748687438866,-245.52,0.0001726,2]
[363348263,1748687438875,-680.93,0.0001726,2]
[363348264,1748687438884,-436.75,0.0001726,2]
[363348265,1748687438894,-768.22,0.0001726,2]
[363348266,1748687438903,-576.12,0.0001726,2]
[363348267,1748687438913,-430.0,0.0001726,2]
[363348268,1748687438921,-430.0,0.0001726,2]
[363348269,1748687438930,-430.0,0.0001726,2]
[363348270,1748687438939,-430.0,0.0001726,2]
[363348271,1748687438948,-430.0,0.0001726,2]
[363348272,1748687438957,-430.0,0.0001726,2]
[363348273,1748687438967,-430.0,0.00017533,2]
[363348274,1748687438975,-430.0,0.00017534,2]
[363348275,1748687438985,-385.4591698,0.00017534,2]
[363348276,1748687438994,-430.0,0.00017534,2]
[363348277,1748687439004,-2879.6,0.00017534,2]
[363348278,1748687439013,-490.67,0.00017534,2]
[363348279,1748687439022,-764.65,0.00017534,2]
[363348280,1748687439031,-680.93,0.00017534,2]
[363348281,1748687439040,-436.75,0.00017534,2]
[363348282,1748687439049,-768.22,0.00017534,2]
[363348283,1748687439057,-576.12,0.00017534,2]
[363348284,1748687439066,-430.0,0.00017534,2]
[363348285,1748687439075,-445.54,0.00017534,2]
[363348286,1748687439084,-430.0,0.00017534,2]
[363348287,1748687439093,-430.0,0.00017534,2]
[363348288,1748687439102,-430.0,0.00017534,2]
[363348289,1748687439111,-430.0,0.00017534,2]
[363348290,1748687439121,-500.0,0.0001769,2]
[363348291,1748687439130,-430.0,0.00017807,2]
[363348292,1748687439139,-430.0,0.00017808,2]
[363348293,1748687439148,-2879.6,0.00017808,2]
[363348294,1748687439157,-490.67,0.00017808,2]
[363348295,1748687439166,-764.65,0.00017808,2]
[363348296,1748687439175,-680.93,0.00017808,2]
[363348297,1748687439184,-436.75,0.00017808,2]
[363348298,1748687439193,-768.22,0.00017808,2]
[363348299,1748687439203,-576.12,0.00017808,2]
[363348300,1748687439212,-430.0,0.00017808,2]
[363348301,1748687439221,-188.64192992,0.00017808,2]
[363348302,1748687439230,-430.0,0.00017808,2]
[363348303,1748687439239,-430.0,0.00017808,2]
[363348304,1748687439248,-430.0,0.00017808,2]
[363348305,1748687439261,-500.0,0.00017899,2]
[363348306,1748687439270,-500.0,0.00017899,2]
[363348307,1748687439279,-500.0,0.00017899,2]
[363348308,1748687439289,-264.07918391,0.00017899,2]
[363348309,1748687439299,-443.61327706,0.00017899,2]
[363348310,1748687439308,-1877.29092578,0.000179,2]
[363348311,1748687439318,-500.0,0.00017955,2]
[363348312,1748687439327,-420.0,0.00017963,2]
[363348313,1748687439336,-430.0,0.00018081,2]
[363348314,1748687439346,-430.0,0.00018082,2]
[363348315,1748687439354,-2879.6,0.00018082,2]
[363348316,1748687439363,-490.67,0.00018082,2]
[363348317,1748687439372,-764.65,0.00018082,2]
[363348318,1748687439381,-680.93,0.00018082,2]
[363348319,1748687439393,-436.75,0.00018082,2]
[363348320,1748687439402,-768.22,0.00018082,2]
[363348321,1748687439411,-576.12,0.00018082,2]
[363348322,1748687439420,-430.0,0.00018082,2]
[363348323,1748687439429,-430.0,0.00018082,2]
[363348324,1748687439438,-430.0,0.00018082,2]
[363348325,1748687439447,-430.0,0.00018082,2]
[363348326,1748687439456,-1877.29092561,0.00018141,2]
[363348327,1748687439464,-700.0,0.00018164,2]
[363348328,1748687439473,-552.07802267,0.000182,2]
[363348329,1748687439482,-500.0,0.00018238,2]
[363348330,1748687439492,-262.38786382,0.00018321,2]
[363348331,1748687439502,-802.05527456,0.00018339,2]
[363348332,1748687439512,-430.0,0.00018355,2]
[363348333,1748687439521,-430.0,0.00018356,2]
[363348334,1748687439531,-2879.6,0.00018356,2]
[363348335,1748687439541,-490.67,0.00018356,2]
[363348336,1748687439551,-764.65,0.00018356,2]
[363348337,1748687439564,-680.93,0.00018356,2]
[363348338,1748687439573,-436.75,0.00018356,2]
[363348339,1748687439583,-768.22,0.00018356,2]
[363348340,1748687439593,-576.12,0.00018356,2]
[363348341,1748687439603,-430.0,0.00018356,2]
[363348342,1748687439612,-488.08614337,0.00018356,2]
[363348343,1748687439623,-430.0,0.00018356,2]
[363348344,1748687439632,-430.0,0.00018356,2]
[363348345,1748687439642,-1877.29092561,0.00018383,2]
[363348346,1748687439652,-154409.56949812,0.00018399,2]
[363348347,1748687439661,-12664.98044988,0.00018421,2]
[363348348,1748687439671,-160.0,0.00018421,2]
[363348349,1748687439681,-842.5625,0.00018421,2]
[363348350,1748687439690,-229.3428821,0.00018421,2]
[363348351,1748687439700,-160.0,0.00018421,2]
[363348352,1748687439709,-160.0,0.00018421,2]
[363348353,1748687439719,-212.77096907,0.00018421,2]
[363348354,1748687439729,-423.4608169,0.00018421,2]
[363348355,1748687439739,-160.0,0.00018421,2]
[363348356,1748687439749,-160.0,0.00018421,2]
[363348357,1748687439758,-1877.29092561,0.00018624,2]
[363348358,1748687439768,-430.0,0.00018629,2]
[363348359,1748687439778,-430.0,0.0001863,2]
[363348360,1748687439788,-2879.6,0.0001863,2]
[363348361,1748687439798,-490.67,0.0001863,2]
[363348362,1748687439808,-764.65,0.0001863,2]
[363348363,1748687439817,-680.93,0.0001863,2]
[363348364,1748687439826,-436.75,0.0001863,2]
[363348365,1748687439836,-768.22,0.0001863,2]
[363348366,1748687439845,-576.12,0.0001863,2]
[363348367,1748687439855,-430.0,0.0001863,2]
[363348368,1748687439864,-430.0,0.0001863,2]
[363348369,1748687439873,-430.0,0.0001863,2]
[363348370,1748687439882,-1877.29092561,0.00018866,2]
[363348371,1748687439891,-2669.08693054,0.000189,2]
[363348372,1748687439900,-160.0,0.00018903,2]
[363348373,1748687439908,-430.0,0.00018903,2]
[363348374,1748687439915,-430.0,0.00018904,2]
[363348375,1748687439922,-2879.6,0.00018904,2]
[363348376,1748687439931,-490.67,0.00018904,2]
[363348377,1748687439940,-764.65,0.00018904,2]
[363348378,1748687439950,-680.93,0.00018904,2]
[363348379,1748687439960,-436.75,0.00018904,2]
[363348380,1748687439969,-768.22,0.00018904,2]
[363348381,1748687439979,-576.12,0.00018904,2]
[363348382,1748687439989,-430.0,0.00018904,2]
[363348383,1748687439998,-430.0,0.00018904,2]
[363348384,1748687440009,-430.0,0.00018904,2]
[363348385,1748687440019,-1877.29092561,0.00019107,2]
[363348386,1748687440029,-430.0,0.00019177,2]
[363348387,1748687440039,-430.0,0.00019178,2]
[363348388,1748687440049,-2879.6,0.00019178,2]
[363348389,1748687440059,-490.67,0.00019178,2]
[363348390,1748687440068,-764.65,0.00019178,2]
[363348392,1748687440078,-680.93,0.00019178,2]
[363348394,1748687440088,-436.75,0.00019178,2]
[363348397,1748687440098,-768.22,0.00019178,2]
[363348398,1748687440108,-576.12,0.00019178,2]
[363348399,1748687440118,-430.0,0.00019178,2]
[363348400,1748687440127,-430.0,0.00019178,2]
[363348401,1748687440136,-430.0,0.00019178,2]
[363348402,1748687440146,-500.0,0.00019178,2]
[363348403,1748687440156,-500.0,0.00019178,2]
[363348404,1748687440166,-500.0,0.00019178,2]
[363348406,1748687440176,-500.0,0.00019178,2]
[363348407,1748687440186,-500.0,0.00019178,2]
[363348408,1748687440196,-500.0,0.00019178,2]
[363348409,1748687440206,-468.27296565,0.00019178,2]
[363348410,1748687440216,-151.0,0.00019178,2]
[363348411,1748687440226,-519.096663,0.00019178,2]
[363348412,1748687440235,-262.38786381,0.00019193,2]
[363348413,1748687440245,-156.587,0.00019233,2]
[363348414,1748687440256,-700.0,0.0001926,2]
[363348415,1748687440266,-178.523289,0.00019288,2]
[363348416,1748687440276,-1877.29092561,0.00019348,2]
[363348417,1748687440286,-430.0,0.00019451,2]
[363348418,1748687440296,-430.0,0.00019452,2]
[363348419,1748687440306,-2879.6,0.00019452,2]
[363348420,1748687440316,-490.67,0.00019452,2]
[363348421,1748687440327,-764.65,0.00019452,2]
[363348422,1748687440337,-680.93,0.00019452,2]
[363348424,1748687440347,-436.75,0.00019452,2]
[363348425,1748687440357,-768.22,0.00019452,2]
[363348426,1748687440367,-576.12,0.00019452,2]
[363348427,1748687440375,-430.0,0.00019452,2]
[363348428,1748687440385,-430.0,0.00019452,2]
[363348430,1748687440396,-430.0,0.00019452,2]
[363348431,1748687440405,-290974.33708885,0.000195,2]
[363348432,1748687440415,-1877.29092561,0.0001959,2]
[363348433,1748687440425,-587.0,0.00019631,2]
[363348434,1748687440434,-430.0,0.00019725,2]
[363348435,1748687440443,-430.0,0.00019726,2]
[363348436,1748687440453,-2879.6,0.00019726,2]
[363348437,1748687440462,-490.67,0.00019726,2]
[363348438,1748687440472,-764.65,0.00019726,2]
[363348439,1748687440481,-680.93,0.00019726,2]
[363348440,1748687440491,-436.75,0.00019726,2]
[363348441,1748687440501,-768.22,0.00019726,2]
[363348442,1748687440510,-576.12,0.00019726,2]
[363348443,1748687440519,-430.0,0.00019726,2]
[363348444,1748687440529,-430.0,0.00019726,2]
[363348445,1748687440539,-430.0,0.00019726,2]
[363348446,1748687440550,-1877.29092561,0.00019831,2]
[363348447,1748687440562,-718.814,0.00019901,2]
[363348448,1748687440573,-258.09400216,0.00019999,2]
[363348449,1748687440582,-151.0,0.0002,2]
[363348450,1748687440592,-430.0,0.0002,2]
[363348451,1748687440603,-2879.6,0.0002,2]
[363348452,1748687440613,-490.67,0.0002,2]
[363348453,1748687440622,-764.65,0.0002,2]
[363348454,1748687440631,-680.93,0.0002,2]
[363348455,1748687440641,-436.75,0.0002,2]
[363348456,1748687440650,-768.22,0.0002,2]
[363348457,1748687440660,-576.12,0.0002,2]
[363348458,1748687440670,-502.08399402,0.0002,2]
[363348459,1748687440680,-430.0,0.0002,2]
[363348460,1748687440689,-6298.82403136,0.0002,2]
[363348461,1748687440699,-12736.42206324,0.0002,2]
[363348462,1748687440709,-150.0006019,0.0002,7]
[363348463,1748687440719,-35483.5639356,0.0002,2]
[363348464,1748687440729,-430.0,0.0002,2]
[363348465,1748687440738,-178.39985348,0.0002,2]
[363348466,1748687440749,-262.38786381,0.00020066,2]
[363348467,1748687440759,-1877.29092561,0.00020072,2]
[363348468,1748687440768,-430.0,0.00020273,2]
[363348469,1748687440778,-2879.6,0.00020273,2]
[363348470,1748687440958,-490.67,0.00020273,2]
[363348471,1748687440968,-764.65,0.00020273,2]
[363348472,1748687440977,-680.93,0.00020273,2]
[363348473,1748687440986,-436.75,0.00020273,2]
[363348474,1748687440998,-768.22,0.00020273,2]
[363348475,1748687441007,-576.12,0.00020273,2]
[363348476,1748687441017,-430.0,0.00020273,2]
[363348477,1748687441026,-430.0,0.00020273,2]
[363348478,1748687441036,-1877.29092561,0.00020314,3]
[363348479,1748687441045,-700.0,0.00020356,2]
[363348480,1748687441055,-430.0,0.00020547,2]
[363348481,1748687441064,-2879.6,0.00020547,2]
[363348482,1748687441074,-490.67,0.00020547,2]
[363348483,1748687441084,-764.65,0.00020547,2]
[363348484,1748687441094,-680.93,0.00020547,2]
[363348485,1748687441104,-436.75,0.00020547,2]
[363348486,1748687441114,-768.22,0.00020547,2]
[363348487,1748687441123,-576.12,0.00020547,2]
[363348488,1748687441133,-430.0,0.00020547,2]
[363348489,1748687441142,-430.0,0.00020547,2]
[363348490,1748687441152,-1877.29092561,0.00020555,3]
[363348491,1748687441162,-151.0,0.00020779,2]
[363348492,1748687441171,-207.4,0.00020779,2]
[363348493,1748687441181,-5000.0,0.00020779,2]
[363348494,1748687441191,-1601.36094879,0.00020779,2]
[363348495,1748687441200,-1877.29092561,0.00020797,4]
[363348496,1748687441209,-492.52303731,0.00020821,2]
[363348497,1748687441219,-2879.6,0.00020821,2]
[363348498,1748687441228,-490.67,0.00020821,2]
[363348499,1748687441238,-764.65,0.00020821,2]
[363348500,1748687441247,-680.93,0.00020821,2]
[363348501,1748687441258,-436.75,0.00020821,2]
[363348502,1748687441268,-768.22,0.00020821,2]
[363348503,1748687441277,-576.12,0.00020821,2]
[363348504,1748687441287,-430.0,0.00020821,2]
[363348505,1748687441296,-430.0,0.00020821,2]
[363348506,1748687441305,-262.38786381,0.00020938,2]
[363348507,1748687441315,-159.82013329,0.00020959,2]
[363348508,1748687441325,-159.82013329,0.00020959,2]
[363348509,1748687441336,-333.074429,0.00021,2]
[363348510,1748687441345,-333.074429,0.00021,2]
[363348511,1748687441355,-159.848236,0.00021,2]
[363348512,1748687441364,-151.0,0.00021,2]
[363348513,1748687441373,-159.848236,0.00021,2]
[363348514,1748687441383,-612.674901,0.00021,2]
[363348515,1748687441393,-612.674901,0.00021,2]
[363348516,1748687441402,-151.0,0.00021,2]
[363348517,1748687441411,-159.5513002,0.00021014,2]
[363348518,1748687441420,-179.800205,0.00021014,2]
[363348519,1748687441429,-158.4581234,0.00021014,2]
[363348520,1748687441439,-176.4540852,0.00021014,2]
[363348521,1748687441449,-153.0,0.00021014,2]
[363348522,1748687441458,-158.4581234,0.00021014,2]
[363348523,1748687441468,-153.0,0.00021014,2]
[363348524,1748687441477,-153.0,0.00021014,2]
[363348525,1748687441487,-176.4540852,0.00021014,2]
[363348526,1748687441496,-153.0,0.00021014,2]
[363348527,1748687441507,-158.4581234,0.00021014,2]
[363348528,1748687441517,-151.0,0.0002103,2]
[363348529,1748687441527,-1877.29092561,0.00021038,4]
[363348530,1748687441536,-333.074429,0.0002105,2]
[363348531,1748687441546,-333.074429,0.0002105,2]
[363348532,1748687441559,-159.848236,0.0002105,2]
[363348533,1748687441575,-151.0,0.0002105,2]
[363348534,1748687441584,-159.848236,0.0002105,2]
[363348535,1748687441594,-612.674901,0.0002105,2]
[363348536,1748687441605,-612.674901,0.0002105,2]
[363348537,1748687441616,-151.0,0.0002105,2]
[363348538,1748687441626,-151.0,0.0002108,2]
[363348539,1748687441635,-151.0,0.0002108,2]
[363348540,1748687441646,-151.0,0.0002108,2]
[363348541,1748687441655,-2879.6,0.00021095,2]
[363348542,1748687441665,-490.67,0.00021095,2]
[363348543,1748687441675,-764.65,0.00021095,2]
[363348544,1748687441684,-680.93,0.00021095,2]
[363348545,1748687441694,-436.75,0.00021095,2]
[363348546,1748687441704,-768.22,0.00021095,2]
[363348547,1748687441713,-576.12,0.00021095,2]
[363348548,1748687441723,-430.0,0.00021095,2]
[363348549,1748687441732,-164.32187857,0.00021095,2]
[363348550,1748687441742,-600.0,0.0002112,2]
[363348551,1748687441753,-159.82013329,0.00021233,2]
[363348552,1748687441763,-159.82013329,0.00021233,2]
[363348553,1748687441772,-159.82013329,0.00021233,2]
[363348554,1748687441781,-159.82013329,0.00021233,2]
[363348555,1748687441790,-628.69231263,0.00021247,2]
[363348556,1748687441800,-1877.29092561,0.00021279,5]
[363348557,1748687441809,-151.0,0.0002129,2]
[363348558,1748687441819,-5000.0,0.00021327,2]
[363348559,1748687441827,-151.0,0.0002133,2]
[363348560,1748687441836,-151.0,0.0002133,2]
[363348561,1748687441845,-151.0,0.0002133,2]
[363348562,1748687441855,-600.0,0.0002134,2]
[363348563,1748687441864,-2879.6,0.00021369,2]
[363348564,1748687441873,-490.67,0.00021369,2]
[363348565,1748687441883,-764.65,0.00021369,2]
[363348566,1748687441893,-680.93,0.00021369,2]
[363348567,1748687441903,-436.75,0.00021369,2]
[363348568,1748687441912,-768.22,0.00021369,2]
[363348569,1748687441922,-576.12,0.00021369,2]
[363348570,1748687441932,-430.0,0.00021369,2]
[363348571,1748687441941,-176.4540852,0.0002137,2]
[363348572,1748687441951,-158.4581234,0.0002137,2]
[363348573,1748687441961,-176.4540852,0.0002137,2]
[363348574,1748687441970,-158.4581234,0.0002137,2]
[363348575,1748687441979,-158.4581234,0.0002137,2]
[363348576,1748687441989,-572.2963003,0.0002137,2]
[363348577,1748687441999,-158.4581234,0.0002137,2]
[363348578,1748687442009,-572.2963003,0.0002137,2]
[363348579,1748687442019,-572.2963003,0.0002137,2]
[363348580,1748687442028,-572.2963003,0.0002137,2]
[363348581,1748687442038,-657.2839026,0.0002137,2]
[363348582,1748687442047,-333.074429,0.00021393,2]
[363348583,1748687442057,-333.074429,0.00021393,2]
[363348584,1748687442066,-159.848236,0.00021393,2]
[363348585,1748687442075,-151.0,0.00021393,2]
[363348586,1748687442085,-159.848236,0.00021393,2]
[363348587,1748687442095,-612.674901,0.00021393,2]
[363348588,1748687442104,-612.674901,0.00021393,2]
[363348589,1748687442114,-151.0,0.00021393,2]
[363348590,1748687442123,-364.3142842,0.00021397,2]
[363348591,1748687442133,-364.3142842,0.00021397,2]
[363348592,1748687442143,-364.3142842,0.00021397,2]
[363348593,1748687442152,-364.3142842,0.00021397,2]
[363348594,1748687442162,-364.3142842,0.00021397,2]
[363348595,1748687442171,-364.3142842,0.00021397,2]
[363348596,1748687442181,-364.3142842,0.00021397,2]
[363348597,1748687442191,-364.3142842,0.00021397,2]
[363348598,1748687442201,-341.3657166,0.00021397,2]
[363348600,1748687442210,-364.3142842,0.00021425,2]
[363348601,1748687442218,-700.0,0.00021452,2]
[363348602,1748687442227,-327.0,0.00021454,2]
[363348603,1748687442236,-250.0,0.00021503,2]
[363348604,1748687442245,-1877.29092561,0.00021521,5]
[363348605,1748687442254,-2004.648516,0.0002156,3]
[363348606,1748687442263,-600.0,0.0002156,2]
[363348607,1748687442272,-628.69231263,0.00021638,2]
[363348608,1748687442281,-2879.6,0.00021643,2]
[363348609,1748687442290,-490.67,0.00021643,2]
[363348610,1748687442298,-764.65,0.00021643,2]
[363348611,1748687442308,-680.93,0.00021643,2]
[363348612,1748687442317,-436.75,0.00021643,2]
[363348613,1748687442327,-768.22,0.00021643,2]
[363348614,1748687442336,-576.12,0.00021643,2]
[363348615,1748687442346,-430.0,0.00021643,2]
[363348616,1748687442354,-1851.29,0.000217,2]
[363348617,1748687442363,-708.0,0.0002176,2]
[363348618,1748687442373,-2227.0,0.0002176,2]
[363348619,1748687442383,-405.0,0.0002176,2]
[363348620,1748687442392,-962.0,0.0002176,2]
[363348621,1748687442402,-1877.29092561,0.00021762,5]
[363348622,1748687442410,-151.0,0.0002178,2]
[363348623,1748687442420,-151.0,0.0002178,2]
[363348624,1748687442428,-151.0,0.0002178,2]
[363348625,1748687442438,-151.0,0.0002178,2]
[363348626,1748687442447,-774.0,0.0002178,2]
[363348627,1748687442456,-158.4581234,0.00021808,2]
[363348628,1748687442465,-176.4540852,0.00021808,2]
[363348629,1748687442475,-572.2963003,0.00021808,2]
[363348630,1748687442484,-176.4540852,0.00021808,2]
[363348631,1748687442494,-572.2963003,0.00021808,2]
[363348632,1748687442504,-158.4581234,0.00021808,2]
[363348633,1748687442513,-176.4540852,0.00021808,2]
[363348634,1748687442522,-363.3790062,0.00021808,2]
[363348635,1748687442531,-158.4581234,0.00021808,2]
[363348636,1748687442541,-11999.99008979,0.0002181,2]
[363348637,1748687442551,-262.38786381,0.0002181,2]
[363348638,1748687442561,-158.4581234,0.00021836,2]
[363348639,1748687442573,-176.4540852,0.00021836,2]
[363348640,1748687442583,-158.4581234,0.00021836,2]
[363348641,1748687442593,-153.0,0.00021836,2]
[363348642,1748687442603,-176.0432544,0.00021836,2]
[363348643,1748687442612,-153.0,0.00021836,2]
[363348644,1748687442622,-165.0091427,0.00021836,2]
[363348645,1748687442631,-153.0,0.00021836,2]
[363348646,1748687442641,-153.0,0.00021836,2]
[363348647,1748687442652,-158.4280407,0.00021836,2]
[363348648,1748687442661,-158.4280407,0.00021836,2]
[363348649,1748687442670,-153.0,0.00021836,2]
[363348650,1748687442680,-153.0,0.00021836,2]
[363348651,1748687442689,-153.0,0.00021836,2]
[363348652,1748687442699,-153.0,0.00021836,2]
[363348653,1748687442708,-153.0,0.00021836,2]
[363348654,1748687442718,-153.0,0.00021836,2]
[363348655,1748687442727,-5000.0,0.00021875,2]
[363348656,1748687442738,-200.0,0.0002189,3]
[363348657,1748687442748,-333.074429,0.000219,2]
[363348658,1748687442758,-333.074429,0.000219,2]
[363348659,1748687442768,-159.848236,0.000219,2]
[363348660,1748687442777,-151.0,0.000219,2]
[363348661,1748687442787,-159.848236,0.000219,2]
[363348662,1748687442797,-612.674901,0.000219,2]
[363348663,1748687442807,-612.674901,0.000219,2]
[363348664,1748687442818,-151.0,0.000219,2]
[363348665,1748687442827,-7592.55,0.000219,2]
[363348666,1748687442837,-70097.8934925,0.000219,2]
[363348667,1748687442846,-155.0,0.0002191,2]
[363348668,1748687442856,-628.69231263,0.00021914,2]
[363348669,1748687442865,-200.0,0.00021917,2]
[363348670,1748687442874,-574.76,0.00021917,2]
[363348671,1748687442884,-292.2741035,0.00021917,2]
[363348672,1748687442893,-1461.44701718,0.00021917,2]
[363348674,1748687443011,-1418.15298282,0.00021917,2]
[363348675,1748687443021,-490.67,0.00021917,2]
[363348676,1748687443031,-764.65,0.00021917,2]
[363348677,1748687443040,-680.93,0.00021917,2]
[363348678,1748687443050,-436.75,0.00021917,2]
[363348679,1748687443060,-768.22,0.00021917,2]
[363348680,1748687443070,-576.12,0.00021917,2]
[363348682,1748687443079,-430.0,0.00021917,2]
[363348684,1748687443088,-500.0,0.00021917,2]
[363348685,1748687443098,-402.66404903,0.00021917,2]
[363348686,1748687443107,-240.37538111,0.00021918,3]
[363348687,1748687443116,-620.66489956,0.00021918,2]
[363348688,1748687443125,-500.0,0.00021973,2]
[363348689,1748687443134,-558.70945928,0.0002198,2]
[363348690,1748687443143,-160.0,0.00021995,3]
[363348691,1748687443152,-160.0,0.00021995,5]
[363348692,1748687443161,-333.074429,0.00021998,7]
[363348693,1748687443170,-333.074429,0.00021998,7]
[363348694,1748687443179,-159.848236,0.00021998,7]
[363348695,1748687443188,-253.141438,0.00021998,7]
[363348696,1748687443198,-159.848236,0.00021998,7]
[363348697,1748687443207,-151.0,0.00021998,7]
[363348698,1748687443215,-227.391147,0.00021998,7]
[363348699,1748687443225,-612.674901,0.00021998,7]
[363348700,1748687443234,-612.674901,0.00021998,7]
[363348702,1748687443243,-151.0,0.00021998,7]
[363348703,1748687443254,-151.0,0.00021998,7]
[363348704,1748687443263,-151.0,0.00021998,7]